Cogmind - Beta 15 @@@ ROGUE MODE // 2025.05.11 @ 15:00:51 Player: mix Result: Destroyed by D-53 Grenadier with Mini Grenade Launcher Performance ------------- Evolutions (0) 0 Regions Visited (2) 400 Robots Destroyed (26) 130 Value Destroyed (625) 625 Prototype IDs (0) 0 Alien Tech Used (0) 0 Bonus (0) 0 TOTAL SCORE: 1155 Bonus ------- None Cogmind --------- Core Integrity 0/250 Matter 290/300 Energy 80/100 System Corruption 1% Temperature Cool (0) Movement Treading (160) Location -10/Mines Parts ------- > --- POWER (1) -------- (None) > --- PROPULSION (2) --- Light Treads > --- UTILITY (2) ------ Small Storage Unit Core Shielding > --- WEAPON (2) ------- Medium Laser > --- INVENTORY (8) ---- Light Treads Improved Heat Sink High-capacity Storage Unit Medium Laser Small Laser Particle Gun Rocket Launcher Peak State ------------ > --- POWER ------------ Ion Engine > --- PROPULSION ------- Light Treads Light Treads > --- UTILITY ---------- Improved Heat Sink Small Storage Unit > --- WEAPON ----------- Medium Laser Small Laser > --- INVENTORY -------- (None) [Rating: 9] Favorites ----------- Power Ion Engine Engine Ion Engine Propulsion Light Treads Treads Light Treads Utility Small Storage Unit Device Improved Heat Sink Storage Small Storage Unit Protection Light Armor Plating Weapon Medium Laser Energy Gun Medium Laser Energy Cannon Beam Cannon Build | -11 -10 -10 ------- Run | Yrd Mat Min Slots Evolved . | . . . Power . | . . . Propulsion . | . . . Utility . | . . . Weapon . | . . . Parts Attached 19 | 6 8 5 Power 4 | 1 2 1 Engine 4 | 1 2 1 Core . | . . . Reactor . | . . . Propulsion 4 | 2 1 1 Treads 4 | 2 1 1 Leg . | . . . Wheel . | . . . Hover . | . . . Flight . | . . . Utility 5 | 1 3 1 Device 2 | . 2 . Storage 1 | 1 . . Processor . | . . . Hackware . | . . . Protection 2 | . 1 1 Artifact . | . . . Weapon 6 | 2 2 2 Energy Gun 5 | 2 1 2 Energy Cannon 1 | . 1 . Ballistic Gun . | . . . Ballistic Cannon . | . . . Launcher . | . . . Special Weapon . | . . . Impact Weapon . | . . . Slashing Weapon . | . . . Piercing Weapon . | . . . Special Melee Weapon . | . . . Unidentified Prototypes . | . . . Parts Lost 11 | . 4 7 Power 3 | . 1 2 Propulsion 3 | . 1 2 Utility 2 | . . 2 Weapon 3 | . 2 1 Highest Loss Streak 4 | . 3 4 To Critical Strikes . | . . . Average Backups 5 | 1 4 7 Power . | . . . Propulsion 1 | . 2 1 Utility 2 | . 1 3 Weapon 1 | . 1 1 Tool/Special . | . . . Unused Backups 4 | . . 4 Power . | . . . Propulsion 1 | . . 1 Utility 1 | . . 1 Weapon 2 | . . 2 Tool/Special . | . . . Average Slot Usage (%) 99 | . 99 98 Engine 13 | . 13 14 Treads 27 | . 28 27 Device 11 | . 13 7 Storage 14 | . 14 14 Protection 1 | . . 5 Energy Gun 22 | . 23 17 Energy Cannon 5 | . 4 10 Peak Build Rating 9 | 6 9 9 Average Rating 8 | 4 8 7 On Entrance 4 | . 6 8 Naked Turns . | . . . Heaviest Build 18 | 13 16 18 Greatest Support 40 | 40 40 40 Greatest Overweight (x) . | . . . Average Overweight (x) . | . . . Largest Inventory Capacity 8 | 8 8 8 Average Capacity 7 | 6 8 8 Most Carried 8 | 5 8 8 Average Carried 5 | . 4 7 Final Capacity 8 | 8 8 8 Final Carried 8 | . 8 7 Class Distribution -------------------- 100% | Mutant Dominant Class ---------------- Mutant | -10/Materials Mutant | -10/Mines Resources | -11 -10 -10 ----------- Run | Yrd Mat Min Matter Collected 452 | 236 126 90 Remotely . | . . . Salvage Created 806 | . 539 267 Parts 43 | . 29 14 Haulers Intercepted 2 | . 2 . Recyclers Shooed . | . . . Parts Field Recycled . | . . . Retrieved Matter . | . . . Parts Self-Destructed . | . . . Prevented . | . . . Kills | -11 -10 -10 ------- Run | Yrd Mat Min Combat Hostiles Destroyed 20 | . 10 10 Guns 13 | . 8 5 Cannons 5 | . 2 3 Classes Destroyed 5 | . 4 1 Tunneler 2 | . 1 1 Hauler 2 | . 2 . Watcher 2 | . 2 . Swarmer 6 | . . 6 Grunt 14 | . 10 4 Best Kill Streak 4 | . 4 3 Combat Bots Only 4 | . 4 3 Max Kills in Single Turn 1 | . 1 1 Gunslinging . | . . . Exploded . | . . . Melee . | . . . Uniques/NPCs Destroyed . | . . . Combat | -11 -10 -10 -------- Run | Yrd Mat Min Hostile Shots Fired 115 | . 51 64 Missed 15 | . 5 10 Hits 100 | . 46 54 Projectile 100 | . 46 54 AOE 10 | . . 10 Part Disruptions 1 | . 1 . Damage Taken 1440 | . 613 827 Core 253 | . 123 130 Absorbed by Shields . | . . . Redirected to Shielding 1 | . . 1 Core Remaining (%) 100 | 100 . . Volleys Fired 92 | . 57 35 Largest 2 | . 2 2 Hottest 110 | . 110 110 Shots Fired 184 | . 114 70 Gun 138 | . 103 35 Cannon 46 | . 11 35 Launcher . | . . . Special . | . . . Kinetic . | . . . Thermal 183 | . 113 70 Explosive . | . . . Electromagnetic 1 | . 1 . Robot Hit Streak 13 | . 13 8 Robot Miss Streak 6 | . 6 6 Penetration Max . | . . . Secondary Targets 1 | . 1 . Max Gunslinging Chain 1 | . 1 . Shots Hit Robots 104 | . 65 39 Core Hits 38 | . 27 11 Critical Kills 1 | . . 1 Critical Parts Destroyed . | . . . Critical Strikes 7 | . 5 2 Burn 6 | . 5 1 Meltdown 1 | . . 1 Melee Attacks . | . . . Impact . | . . . Slashing . | . . . Piercing . | . . . Sneak Attacks . | . . . Combat Hostiles . | . . . Follow-up Attacks . | . . . Damage Inflicted 1386 | . 796 590 Guns 987 | . 726 261 Cannons 399 | . 70 329 Explosions . | . . . Melee . | . . . Ramming . | . . . Kinetic . | . . . Thermal 1373 | . 783 590 Explosive . | . . . Electromagnetic 13 | . 13 . Impact . | . . . Slashing . | . . . Piercing . | . . . Highest Corruption 1 | . 1 1 Average Corruption 1 | . 1 1 Corruption Purged . | . . . Corruption Blocked . | . . . Effects 13 | . 7 6 Message Errors 5 | . 1 4 Matter Fused 4 | . 3 1 Energy Discharges 1 | . . 1 Data Loss (minor) 2 | . 2 . Alerts 1 | . 1 . Overload Shots . | . . . Overflow Damage 8 | . 8 . Projectiles 8 | . 8 . Explosions . | . . . Melee . | . . . Knockbacks . | . . . Impact . | . . . Kinetic . | . . . Secondary . | . . . Self-Inflicted Damage . | . . . Shots . | . . . Rammed . | . . . Targets Rammed . | . . . Kicked . | . . . Crushed . | . . . Highest Temperature 394 | . 126 394 Average Temperature 110 | . 18 151 Received Heat Transfer 402 | . 288 114 Siege Activations . | . . . Martial Activations . | . . . Shielding Activations . | . . . Robots Disrupted . | . . . Combat Hostiles . | . . . Robots Corrupted . | . . . Combat Hostiles . | . . . Parts Fried . | . . . Impact Corruptions . | . . . Robots Melted 2 | . . 2 Combat Hostiles 2 | . . 2 Parts Melted 15 | . 10 5 Heat Transferred 3910 | . 2427 1483 Parts Sabotaged . | . . . Parts Stolen . | . . . Parts Stripped . | . . . Power Chain Reactions . | . . . Alert | -11 -10 -10 ------- Run | Yrd Mat Min Maximum Alert Level . | . . . Low Security (%) 100 | 100 100 100 Level 1 . | . . . Level 2 . | . . . Level 3 . | . . . Level 4 . | . . . Level 5 . | . . . High Security . | . . . Max Security . | . . . Peak Influence 110 | . 91 110 Initial 3 | . . 3 Average 26 | . 21 41 Influence Increases 572 | . 297 275 Destroy 0b10 Robot/C 400 | . 200 200 Destroy 0b10 Robot/NC 30 | . 25 5 Destroy Leader 88 | . 48 40 Successful Hack 9 | . 9 . Lose Combat Pursuer 45 | . 15 30 Influence Decreases 572 | . 289 283 Entered New Map 5 | . . 5 Time Decay 497 | . 249 248 Lost Part 70 | . 40 30 Squads Dispatched 4 | . 4 . Investigation 3 | . 3 . Extermination . | . . . Reinforcement 1 | . 1 . Assault . | . . . Garrison . | . . . Intercept . | . . . Searches Triggered . | . . . Construction Impeded . | . . . Haulers Reinforced . | . . . Active Scanning Responses . | . . . Cargo Convoy Interrupts . | . . . Stealth | -11 -10 -10 --------- Run | Yrd Mat Min Distress Signals 2 | . 2 . Communications Jammed . | . . . Distress Signals . | . . . Times Spotted 44 | . 30 14 Peak Tracking Total 7 | . 7 5 Tactical Retreats 3 | . 1 2 Traps | -11 -10 -10 ------- Run | Yrd Mat Min Traps Triggered 3 | . 3 . Indirectly . | . . . Trap Hack Attempts . | . . . Triggered . | . . . Disarmed . | . . . Reprogrammed 2 | . 2 . Reused . | . . . Traps Extracted . | . . . Installed . | . . . Triggered . | . . . Machines | -11 -10 -10 ---------- Run | Yrd Mat Min Machines Disabled . | . . . Max in Single Turn . | . . . Machines Repaired . | . . . Machines Dismantled . | . . . Machines Sabotaged . | . . . Overloaded Fab Kills . | . . . Hacking | -11 -10 -10 --------- Run | Yrd Mat Min Machines Accessed 7 | . 7 . Terminals 5 | . 5 . Fabricators . | . . . Repair Stations . | . . . Recycling Units 2 | . 2 . Scanalyzers . | . . . Garrison Access . | . . . Total Hacks 20 | . 20 . Successful 13 | . 13 . Failed 7 | . 7 . Catastrophic 2 | . 2 . Database Lockouts . | . . . Manual 12 | . 12 . Terminals 13 | . 13 . Fabricators . | . . . Repair Stations . | . . . Recycling Units 7 | . 7 . Scanalyzers . | . . . Garrison Access . | . . . Terminal Hacks 4 | . 4 . Record 1 | . 1 . Reprogram Traps 2 | . 2 . Recall Investigation 1 | . 1 . Fabricator Hacks . | . . . Repair Station Hacks . | . . . Recycling Unit Hacks 2 | . 2 . Retrieve Components 2 | . 2 . Scanalyzer . | . . . Garrison Access Hacks . | . . . Unauthorized Hacks 7 | . 7 . Terminals 5 | . 5 . Botnet 4 | . 4 . Operators 1 | . 1 . Fabricators . | . . . Repair Stations . | . . . Recycling Units 2 | . 2 . Reject 2 | . 2 . Scanalyzers . | . . . Garrison Access . | . . . Data Cores Recovered . | . . . Used . | . . . Hacking Detections 4 | . 4 . Full Trace Events 1 | . 1 . Feedback Events . | . . . Feedback Blocked . | . . . Robot Schematics Acquired . | . . . Robots Built . | . . . Authchips . | . . . Time . | . . . Total Robot Build Rating . | . . . Part Schematics Acquired . | . . . Parts Built . | . . . Authchips . | . . . Time . | . . . Total Part Build Rating . | . . . Parts Repaired . | . . . Time . | . . . Parts Recycled . | . . . Recycled Matter . | . . . Retrieved Matter . | . . . Retrieved Components 12 | . 12 . Parts Scanalyzed . | . . . Part Schematics Acquired . | . . . Parts Damaged . | . . . Bothacking | -11 -10 -10 ------------ Run | Yrd Mat Min Used RIF Installer . | . . . Robots Hacked . | . . . Non-combat . | . . . Combat . | . . . Robot Hacks Applied . | . . . Relay Couplers Released . | . . . Fabnet Peak Effective % . | . . . Robots Rewired . | . . . Allies Hacked . | . . . Hacks Repelled . | . . . Allies | -11 -10 -10 -------- Run | Yrd Mat Min Total Allies . | . . . Largest Group . | . . . Highest-Rated Group . | . . . Highest-Rated Ally . | . . . Total Orders . | . . . Ally Attacks . | . . . Total Damage . | . . . Kills . | . . . Allies Corrupted . | . . . Allies Melted . | . . . Intel | -11 -10 -10 ------- Run | Yrd Mat Min Active Infowar (turns) 447 | . 139 308 Structural 447 | . 139 308 Robot Analysis Total . | . . . Derelict Logs Recovered 2 | . . 2 Drone Launches . | . . . Drone Recoveries . | . . . Exploration | -11 -10 -10 ------------- Run | Yrd Mat Min Turns Passed 2448 | 46 1714 688 Spaces Moved 1240 | 29 869 342 Core 10 | 10 . . Treads 1230 | 19 869 342 Legs . | . . . Wheels . | . . . Hover . | . . . Flight . | . . . Fastest Speed 50 | 50 160 160 Average Speed 159 | 122 160 160 Slowest Speed 160 | 160 160 160 Overloaded Moves . | . . . Propulsion Burnouts . | . . . Robots Hopped . | . . . Potential Cave-ins . | . . . Cave-ins Triggered . | . . . Exploration Rate (%) 58 | 4 99 71 Regions Visited 2 Branch Regions 1 Pre-discovered Areas . | . . . Known Exits Taken . | . . . Unknown Exits Taken 2 | 1 1 . Scrap Searched 1 | . . 1 Spaces Dug . | . . . Terrain Destroyed . | . . . Melee . | . . . Projectile . | . . . AOE . | . . . Terrain Rammed . | . . . Walls Destroyed . | . . . Machines Disabled . | . . . Actions | -11 -10 -10 --------- Run | Yrd Mat Min Total 1527 | 40 1077 410 Wait 148 | . 128 20 Move 1238 | 28 868 342 Hop . | . . . Pick Up 23 | 6 14 3 Fast Attach . | . . . Attach 15 | 6 5 4 Detach . | . . . Swap 10 | . 4 6 Drop 1 | . 1 . Fire 92 | . 57 35 Melee . | . . . Ram . | . . . Kick . | . . . Crush . | . . . Escape Stasis . | . . . Rewire . | . . . Trap . | . . . Miscellaneous . | . . . Route ------- -11/Scrapyard -10/Materials (discovered 6 exits: [*Mat x3] / [*Min x2] / [*Sub]) -10/Mines (discovered 2 exits: [*Mat x2]) History --------- Turn | Location | Event 7 | -11/Scrapyard | Discovered new exit (range 16) 47 | -11/Scrapyard | Entered Materials 48 | -10/Materials | Met a group of wandering Federalists 157 | -10/Materials | Lost 4 allies 304 | -10/Materials | Build established: Mutant 461 | -10/Materials | Discovered new exit (range 8) 614 | -10/Materials | Discovered new exit (range 16) 721 | -10/Materials | Discovered new exit (range 12) 864 | -10/Materials | Discovered new exit (range 13) 1060 | -10/Materials | Discovered new exit (range 15) 1235 | -10/Materials | Discovered new exit (range 14) 1295 | -10/Materials | Lost 3 parts (1n2w) 1761 | -10/Materials | Entered Mines 1774 | -10/Mines | Learned 4 Materials zone layouts 1907 | -10/Mines | Core integrity fell below 50% 2152 | -10/Mines | Discovered new exit (range 12) 2238 | -10/Mines | Discovered new exit (range 7) 2247 | -10/Mines | Received a Rocket Launcher from a helpful Derelict 2424 | -10/Mines | Assembled infested the area 2431 | -10/Mines | Learned Materials trap positions 2441 | -10/Mines | Core integrity fell below 20% 2449 | -10/Mines | Destroyed by D-53 Grenadier with Mini Grenade Launcher Last Messages --------------- J0-5OB(g) slips back into the shadows. Acquired Rocket Launcher. Ion Engine destroyed. Aluminum Leg melted. G-47 Trooper destroyed. G-34 Mercenary destroyed. Acquired 25 matter. Acquired Particle Gun. ALERT: Infestation in the mines, dispatching Demolisher response squad. N:JI,>9MZJKUGE4LR8NM GS3U1O Z8 Lgt. Treads destroyed. Lgt. Armor Plating destroyed. Ion Engine destroyed. Beam Cannon destroyed. The unstable cave ceiling collapses. Map ----- +----------------------------------------------------+ | ????????????????????????????????????????## | | ????????????????????????????????????????## | | ????????????????????????????????????????### | | ????????????????????????????????????????#### ### | | ?????????????????????????????????????????######### | | ??????????????????????????????????????????######## | | ????????????????????????????????????????????????## | | ????????????????????????????????????????????????## | | ????????????????????????????????????????????????## | | ????????????????????????????????????????????????## | | ?????????#??????????????????????????????????????## | | ?????????? ????????????????????????????????????## | | ??????????? ???????????????????????????????????## | | ????????????? ??????????????????????????????????## | | ###########??? ??????####??????????????????????## | | #????# ????## ##?????????????????????## | | """ """ #????# #### ###???????????????????## | | """ """ #????# ##??????????????????## | | """ """ #????# #??????????????????## | | ####?####### ##?????????????????## | | """ """ = #?????### #??????????????##### | | """ """ ##%#????## #??????????????##### | | """ """ ##=#????# #??????????????## = | | ## #????# #??????????????##%## | | ############ #????## #################%## | | ???????????# #?????## @ ################# ## | | ???????????# ######## dd =%** | | ???????????# % r %% | | ???????????########### r# # ################## | | ?????????????????????## ################## | | ??????????????????????# #????????????????# | | ??????????????????????# #????????????????# | | ?????????????????????## #????????????????? | | ????????????????????## ### #????????????????? | | ???????????????????## ##?## ##???????????????? | | ??#########??####### ###???## ##??????????????? | | ?## ##?# ##??????## ###????????????? | | ?# ### ##### ##????????# ##???????????? | | ?# < ##### #?????????# #???????????? | | ??# #### ## #?????????# #???????????? | | ??## #??# ## ####?????????# ##???????????? | | ??## ##?# ## #????????????# ##????????????? | | ??# ### ## #????????????# ##?????????????? | | ?# % #????????##### ##?????????????? | | ?# ####???????## ## ##????????????? | | # ########??????????# < #????????????? | | # #??????????????????# #????????????? | | # #???????????????????## ##????????????? | | ## #?????????????????????### ##?????????????? | | ?####????????????????????????## ##??????????????? | +----------------------------------------------------+ Best States ------------- Heat Dissipation 39 Energy Generation 10 Energy Capacity 250 Matter Stores 300 Matter Capacity 300 Sight Range 16 Terrain Scan Density 10 Armor Coverage 150 Evasion (%) 50 Recoil Reduction 2 Item Schematics ----------------- None Robot Schematics ------------------ None Fabricated ------------ Nothing Repaired ---------- Nothing Alien Tech Used ----------------- None Achievements -------------- None Challenges ------------ None Game ------ Seed SwordPersonalUnit Manual? 0 Play Time 00:17:43 Cumulative 78.0 hours Start 2025.05.11 @ 14:43:14 End 2025.05.11 @ 15:00:51 Sessions 1 Manual Loads 0 Difficulty Rogue Special Mode None Game No. 125 Rogue 111 Adventurer 14 Explorer 0 Win Type - Total 1 Types 1/0/0/0/0/0/0/0/0/0 Lore% 33 Gallery% 43 Achievement% 44 Wizard Run 0 Options --------- Layout 1 ASCII 0 Keyboard 0 Movement Mouse Keybinds 0 Fullscreen 1 Font 24/Smallcaps Map View 50x35 Zoom Use 3% Tactical HUD 0 Map Filters NONE Filters NONE Steam 1 RUN: 561f05f3-166e-48c9-a33b-c594a453b30a